[Event "XII Cracow ICC-A 2024"]
[Site "Krakow"]
[Date "2024.06.25"]
[Round "5.1"]
[White "Gumularz, Szymon"]
[Black "Rozentalis, Eduardas"]
[Result "1/2-1/2"]
[ECO "A18"]
[WhiteElo "2593"]
[BlackElo "2476"]
[Annotator "TA"]
[PlyCount "51"]
[EventDate "2024.06.20"]
[EventType "swiss"]
[EventCountry "POL"]
[SourceTitle "playchess.com"]
[Source "ChessBase"]
[SourceQuality "1"]
[TimeControl "40/5400+30:1800+30"]

{[%evp 10,51,18,23,17,4,14,17,16,10,9,0,0,0,18,21,46,45,54,44,56,52,66,60,52,66,65,0,0,-11,-12,0,0,0,0,-9,-18,-20,-16,-8,-7,-7,-8,-5]} 1. c4 {[%emt 0:00:12]} e6 {[%emt 0:00:25]} 2. Nc3 {[%emt 0:01:06]} Nf6 {[%emt 0:00:28]} 3. e4 {[%emt 0:00:08]} d5 {[%emt 0:01:27]} 4. cxd5 {[%emt 0:00:07]} exd5 {[%emt 0:00:03]} 5. e5 {[%emt 0:00:05]} Ne4 {[%emt 0:00:04]} 6. Nf3 {[%emt 0:00:05]} Bf5 {[%emt 0:03:21]} 7. d3 {[%emt 0:00:20]} Nxc3 {[%emt 0:00:46]} 8. bxc3 {[%emt 0:00:08]} c5 {[%emt 0:00:42]} 9. d4 {[%emt 0:00:05]} c4 {[%emt 0:00:46] Prevents Bd3} 10. Be2 {[%emt 0:11:23]} Be7 {[%emt 0:01:54]} 11. O-O {[%emt 0:00:07]} O-O {[%emt 0:07:50]} 12. Ne1 {[%emt 0:00:38]} f6 {[%emt 0:03:33]} 13. g4 {[%emt 0:03:39]} Bc8 {[%emt 0:10:36]} 14. f4 {[%emt 0:04:48]} fxe5 {[%emt 0:04:46]} 15. dxe5 {[%emt 0:00:34]} Bc5+ {[%emt 0:00:19]} 16. Kh1 {[%emt 0:00:05]} Nc6 {[%emt 0:00:17]} 17. Ng2 {[%emt 0:04:10]} Kh8 {[%emt 0:09:24]} 18. Rb1 {[%emt 0:06:47]} (18. Be3 $14 Bb6 19. Rc1) 18... d4 $11 {[%emt 0:08:12] The position is equal.} 19. cxd4 {[%emt 0:01:29]} Nxd4 {[%emt 0:00:36]} 20. Bxc4 {[%emt 0:05:47]} b5 $1 {[%emt 0:01:06]} 21. Bxb5 {[%emt 0:10:02]} Nxb5 {[%emt 0:02:31]} 22. Rxb5 {[%emt 0:02:34]} Qxd1 {[%emt 0:00:59]} 23. Rxd1 {[%emt 0:00:03]} Bxg4 {[%emt 0:00:08]} 24. Rd2 {[%emt 0:02:11]} Bb6 {[%emt 0:07:38] A strong pair of Bishops.} 25. h4 {[%emt 0:01:20]} Rac8 {[%emt 0:04:08]} 26. Ba3 {[%emt 0:19:20] Weighted Error Value: White=0.06 (flawless) /Black=0.04 (flawless) .  Mistake:       	White=1     	---        OK:         	White=13    	Black=8      Best:        	---       	Black=2      Strong:       	---       	Black=1} 1/2-1/2

[Event "XII Cracow ICC-A 2024"]
[Site "Krakow"]
[Date "2024.06.25"]
[Round "5.2"]
[White "Moussard, Jules"]
[Black "Hollan, Martin"]
[Result "1-0"]
[ECO "B30"]
[WhiteElo "2610"]
[BlackElo "2373"]
[Annotator "TA"]
[PlyCount "129"]
[EventDate "2024.06.20"]
[EventType "swiss"]
[EventCountry "POL"]
[SourceTitle "playchess.com"]
[Source "ChessBase"]
[SourceQuality "1"]
[TimeControl "40/5400+30:1800+30"]

{[%evp 26,129,64,42,32,39,34,35,51,42,50,72,81,48,52,29,41,53,113,119,135,12,9,12,104,50,44,52,48,39,90,86,98,85,93,97,95,97,100,80,80,45,83,80,78,87,72,85,93,99,91,91,95,81,118,39,175,155,135,7,7,7,7,7,7,7,142,146,168,143,167,167,167,167,175,142,258,258,250,258,258,250,251,251,236,86,200,193,185,192,185,0,171,0,192,192,192,192,192,192,192,191,29977,29978,29979,29980]} 1. e4 {[%emt 0:07:42]} c5 {[%emt 0:00:08]} 2. Nf3 {[%emt 0:00:06]} Nc6 {[%emt 0:00:07]} 3. Bb5 {[%emt 0:00:21]} e5 {[%emt 0:00:10]} 4. O-O {[%emt 0:05:21]} Bd6 {[%emt 0:00:19]} 5. c3 {[%emt 0:03:04]} a6 {[%emt 0:00:45]} 6. Ba4 {[%emt 0:01:03] B30: Sicilian: 2...Nc6 3 Bb5, lines without ...g6.} b5 {[%emt 0:00:17]} 7. Bb3 {[%emt 0:01:55]} c4 {[%emt 0:00:16]} 8. Bc2 {[%emt 0:00:07]} Nge7 {[%emt 0:00:17]} 9. d3 {[%emt 0:03:38]} cxd3 {[%emt 0:00:47]} 10. Qxd3 {[%emt 0:00:06]} Bc7 {[%emt 0:02:07]} 11. Rd1 {[%emt 0:09:30]} O-O {[%emt 0:01:35]} 12. a4 {[%emt 0:07:58]} b4 $146 {[%emt 0:02:07]} ({Predecessor:} 12... Rb8 13. Bg5 h6 14. Bh4 Qe8 15. axb5 axb5 16. Na3 Ng6 17. Bg3 Na7 18. b4 d6 {0-1 Wartiovaara,O (2158)-Janaszak,D (2331) Titled Tuesday intern op 14th Jun Late blitz 2022 (10)}) 13. Nbd2 {[%emt 0:03:10]} a5 {[%emt 0:14:12]} 14. Nf1 {[%emt 0:02:40]} d6 {[%emt 0:03:12]} 15. Ne3 {[%emt 0:02:02]} Ba6 {[%emt 0:00:51]} 16. Qd2 {[%emt 0:00:20]} Kh8 {[%emt 0:10:30]} 17. Bd3 {[%emt 0:02:55]} Qc8 {[%emt 0:02:56]} 18. Bb5 {[%emt 0:09:09]} Bb7 {[%emt 0:03:13]} 19. Bc4 {[%emt 0:02:52]} f5 {[%emt 0:07:18]} 20. exf5 {[%emt 0:02:05]} Nxf5 {[%emt 0:01:23]} 21. Ng5 {[%emt 0:01:23]} Nxe3 {[%emt 0:05:17]} (21... bxc3 $14 22. bxc3 Nce7) 22. Qxe3 $16 {[%emt 0:02:05]} Nd8 23. Bd5 {[%emt 0:03:04]} ({White should play} 23. Qd3 $1 $16 {[%csl Gg5][%cal Rd3h7]} e4 24. Nxe4) 23... Bxd5 $11 {[%emt 0:11:10]} 24. Rxd5 {[%emt 0:00:30]} Ne6 {[%emt 0:00:31]} (24... h6 $11 25. Ne4 Ne6) 25. Qd3 {[%emt 0:03:58]} (25. Nxe6 $1 $16 Qxe6 26. Rb5) 25... Nxg5 $14 {[%emt 0:04:58]} 26. Bxg5 {[%emt 0:00:16]} bxc3 {[%emt 0:00:19]} 27. bxc3 {[%emt 0:01:55]} Qe6 {[%emt 0:02:34]} (27... Qf5 $14 28. Qxf5 Rxf5) 28. Be3 $16 {[%emt 0:03:35]} Rab8 {[%emt 0:00:10]} 29. c4 {[%emt 0:02:56]} h6 {[%emt 0:20:05]} 30. Rb5 {[%emt 0:04:58]} Rbc8 {[%emt 0:00:06]} 31. Rc1 {[%emt 0:01:54]} Bd8 {[%emt 0:00:39]} 32. Rd5 {[%emt 0:01:46]} Rc6 {[%emt 0:00:37]} 33. c5 {[%emt 0:00:55]} Be7 {[%emt 0:00:09]} 34. cxd6 {[%emt 0:00:48]} Rxd6 {[%emt 0:00:04]} 35. Rxd6 {[%emt 0:00:37]} Qxd6 {[%emt 0:00:06]} 36. Qb5 {[%emt 0:01:04]} Qb4 {[%emt 0:01:41]} 37. Qxe5 {[%emt 0:02:55]} Bf6 {[%emt 0:00:09]} 38. Qc5 {[%emt 0:01:30]} Rd8 {[%emt 0:04:16]} 39. Qc6 {[%emt 0:00:25]} Bd4 {[%emt 0:03:26] [#]} 40. Bxh6 {[%emt 0:03:50]} ({Better is} 40. Bxd4 $1 $16 {[%mdl 512]} Qxd4 41. g3) 40... Bxf2+ {[%emt 0:00:50]} (40... Rf8 $1 $14) 41. Kxf2 $18 {[%emt 0:31:10]} Qh4+ {[%emt 0:01:26]} 42. Ke2 {[%emt 0:00:00]} (42. Ke3 $1 $16 {Black must now prevent Bf4.} gxh6 43. Qc3+ Kg8 44. Qc4+ (44. Qxa5 Qd4+ 45. Kf3 Qd3+ 46. Kg4 Rd4+ 47. Kh5 Qe2+ 48. Kxh6 Qe6+ 49. Kh5 Qg4+ 50. Kh6 Rd6#) 44... Qxc4 45. Rxc4) 42... gxh6 $11 {[%emt 0:10:20]} 43. Qc3+ {[%emt 0:00:00]} Qd4 $1 {[%emt 0:07:11]} 44. Qe3 {[%emt 0:00:00]} (44. Qxa5 {gets mated.} Qd3+ 45. Kf2 Rf8+) (44. Kf3 {simplifies} Qxc3+ 45. Rxc3 Rd4 46. Ra3) 44... Qf6 {[%emt 0:01:17]} 45. Rc4 {[%emt 0:00:00]} Qb2+ {[%emt 0:03:13]} (45... Rf8 $11 {remains equal.} 46. Qc3 Qxc3 47. Rxc3 Rf4) 46. Kf3 $16 {[%emt 0:00:00]} Qb7+ {[%emt 0:01:09]} 47. Re4 {[%emt 0:00:24]} Qc6 {[%emt 0:01:47]} 48. Kg3 {[%emt 0:00:46]} Qg6+ {[%emt 0:04:57]} 49. Rg4 {[%emt 0:00:59]} Qf6 {[%emt 0:01:22]} 50. h4 {[%emt 0:01:15]} Rg8 {[%emt 0:02:35]} (50... Qd6+ $16 51. Kh3 Qd3 52. Qxd3 Rxd3+ 53. g3 Rc3) 51. Rxg8+ $1 $18 {[%emt 0:02:04]} Kxg8 {[%emt 0:00:01]} 52. Qb3+ {[%emt 0:01:10]} Kg7 {[%emt 0:00:23]} 53. Qb7+ {[%emt 0:00:04]} Kg6 {[%emt 0:00:09] [#]} 54. Qe4+ $1 {[%emt 0:00:54]} Kg7 {[%emt 0:00:06]} 55. Kg4 {[%emt 0:00:26]} (55. Qg4+ $18 {and the rest is easy.} Kh7 56. Qd7+ Kh8 57. Qc8+ Kh7 58. Qc7+ Kg6 59. Qxa5) 55... Qf1 {[%emt 0:01:48]} (55... Qf2 $16 {was necessary.}) 56. Qe7+ {[%emt 0:02:07]} Kg8 {[%emt 0:00:07]} 57. Qe6+ {[%emt 0:00:11]} Kg7 {[%emt 0:00:08]} 58. Qe7+ {[%emt 0:00:44]} Kg8 {[%emt 0:00:04]} 59. Qe6+ {[%emt 0:00:05]} Kg7 {[%emt 0:00:04]} 60. Kh5 {[%emt 0:01:01]} Qxg2 {[%emt 0:00:26]} 61. Qxh6+ {[%emt 0:00:14]} Kf7 {[%emt 0:00:07] [#]} 62. Qf4+ $1 {[%emt 0:00:50]} Ke8 {[%emt 0:00:17]} 63. Qe5+ {[%emt 0:00:08]} Kf7 $2 {[%emt 0:00:29]} (63... Kd7 $18) 64. Qf5+ {[%emt 0:00:05]} (64. Qxa5 $2 Qg6#) 64... Ke8 {[%emt 0:00:08]} 65. Qg6+ {[%emt 0:00:38]} ({Stronger than} 65. Qxa5 Qe2+ 66. Kh6 Qe6+ 67. Kh5 Qe2+ 68. Kg6 Qe6+ 69. Kh5 Qe2+ $11) 1-0

[Event "XII Cracow ICC-A 2024"]
[Site "Krakow"]
[Date "2024.06.25"]
[Round "5.3"]
[White "Sieciechowicz, Marcin"]
[Black "Fier, Alexandr"]
[Result "1-0"]
[ECO "E35"]
[WhiteElo "2405"]
[BlackElo "2602"]
[Annotator "TA"]
[PlyCount "59"]
[EventDate "2024.06.20"]
[EventType "swiss"]
[EventCountry "POL"]
[SourceTitle "playchess.com"]
[Source "ChessBase"]
[SourceQuality "1"]
[TimeControl "40/5400+30:1800+30"]

{[%evp 12,59,10,0,14,16,16,20,8,10,11,4,14,6,0,-2,25,15,22,17,18,0,83,80,116,115,113,118,144,143,181,164,170,172,192,187,185,138,297,283,323,344,1410,1095,1303,1295,1191,1063,1081,170]} 1. d4 {[%emt 0:01:07]} Nf6 {[%emt 0:01:15]} 2. c4 {[%emt 0:00:33]} e6 {[%emt 0:00:04]} 3. Nc3 {[%emt 0:00:10]} Bb4 {[%emt 0:00:03]} 4. Qc2 {[%emt 0:00:26]} d5 {[%emt 0:00:05]} 5. cxd5 {[%emt 0:00:13]} exd5 {[%emt 0:00:04]} 6. Bg5 {[%emt 0:00:27][%cal Bc1g5,Bg5h4,Bh4g3,Bg3e5][%mdl 32]} h6 {[%emt 0:00:04][%cal Bh7h6,Bh6h5,Bh5h4][%mdl 32]} 7. Bh4 {[%emt 0:00:07]} g5 {[%emt 0:00:31]} 8. Bg3 {[%emt 0:00:03]} Nc6 {[%emt 0:00:04]} 9. e3 {[%emt 0:00:09]} h5 {[%emt 0:00:04] The position is equal.} 10. Bb5 {[%emt 0:00:22]} h4 {[%emt 0:00:06]} 11. Be5 {[%emt 0:00:16]} O-O {[%emt 0:00:04]} 12. Bxc6 {[%emt 0:00:36]} bxc6 {[%emt 0:00:04]} 13. Nge2 {[%emt 0:00:29]} Ne4 {[%emt 0:00:21] White must now prevent ...Bf5.} 14. O-O {[%emt 0:01:12]} Bxc3 {[%emt 0:27:49]} 15. Nxc3 {[%emt 0:03:06]} Nxc3 {[%emt 0:03:03]} 16. Qxc3 {[%emt 0:01:15]} Bd7 {[%emt 0:02:31] Black is weak on the dark squares} (16... f6 $1 $11 17. Qxc6 Bd7) 17. Qa5 {[%emt 0:06:10]} Rc8 {[%emt 0:01:14] [#] Hoping for ...f6.} 18. h3 $1 {[%emt 0:00:18] White has more active pieces.} (18. Qxa7 $2 f6 19. a4 fxe5 20. dxe5 Rb8 $19) 18... f6 {[%emt 0:08:15]} 19. Bh2 {[%emt 0:00:15]} Re8 {[%emt 0:01:30]} 20. Qxa7 {[%emt 0:05:25]} Re4 {[%emt 0:00:33]} 21. Qa5 {[%emt 0:13:03]} Qe7 {[%emt 0:00:30]} 22. Qd2 {[%emt 0:03:34]} ({And not} 22. Bxc7 Bxh3 23. gxh3 Rxc7 $14) 22... Kh8 {[%emt 0:03:25]} 23. f3 {[%emt 0:07:46]} Re6 {[%emt 0:02:41][%cal Be4e6,Be6e3,Be3d3][%mdl 32]} 24. f4 {[%emt 0:03:03]} (24. Rfe1 $18) 24... gxf4 $2 {[%emt 0:05:39] [#] A mistake that costs the game.} (24... g4 $16) 25. Rxf4 $18 {[%emt 0:06:42]} Rxe3 {[%emt 0:00:04]} 26. Rxf6 {[%emt 0:01:47]} ({Resist} 26. Rxh4+ Kg8 27. Rf1 Re8) 26... Qe4 {[%emt 0:03:04]} (26... Qxf6 27. Qxe3 Kg8) 27. Rf4 {[%emt 0:02:38] White is clearly winning.} Qd3 {[%emt 0:01:06]} 28. Qxd3 {[%emt 0:00:40]} Rxd3 {[%emt 0:00:03]} 29. Rf7 {[%emt 0:01:25]} Be6 {[%emt 0:00:20]} 30. Be5+ {[%emt 0:00:06] Weighted Error Value: White=0.04 (flawless) /Black=0.27 (precise) .  Mistake:       	White=1     	Black=3      Inaccurate:     	---       	Black=2      OK:         	White=11    	Black=7      Best:        	---       	Black=1      Strong:       	White=1     	---} 1-0

[Event "XII Cracow ICC-A 2024"]
[Site "Krakow"]
[Date "2024.06.25"]
[Round "5.4"]
[White "Samunenkov, Ihor"]
[Black "Marszalek, Maciej"]
[Result "1-0"]
[ECO "A61"]
[WhiteElo "2532"]
[BlackElo "2255"]
[Annotator "TA"]
[PlyCount "175"]
[EventDate "2024.06.20"]
[EventType "swiss"]
[EventCountry "POL"]
[SourceTitle "playchess.com"]
[Source "ChessBase"]
[SourceQuality "1"]
[TimeControl "40/5400+30:1800+30"]

{[%evp 69,175,85,121,100,126,114,136,132,145,129,114,98,147,120,165,166,254,262,278,216,212,202,222,222,210,219,200,212,216,158,156,149,195,200,213,186,213,183,208,198,204,201,208,207,194,189,370,359,387,386,391,370,388,388,381,370,360,346,606,375,364,312,590,456,426,417,633,635,663,590,864,864,890,628,692,685,908,589,995,845,727,702,994,662,621,613,692,665,629,621,606,606,576,556,505,415,464,501,973,942,29977,29978,29988,29989,29995,29996,29996,29997]} 1. d4 {[%emt 0:00:05]} Nf6 {[%emt 0:00:06]} 2. c4 {[%emt 0:00:09]} c5 {[%emt 0:01:53]} 3. d5 {[%emt 0:00:09]} e6 {[%emt 0:00:02]} 4. Nc3 {[%emt 0:00:16]} exd5 {[%emt 0:00:03]} 5. cxd5 {[%emt 0:00:09]} d6 {[%emt 0:00:03]} 6. Nf3 {[%emt 0:00:10]} g6 {[%emt 0:00:07]} 7. Nd2 {[%emt 0:00:07]} Nbd7 {[%emt 0:03:11]} 8. e4 {[%emt 0:00:15]} Bg7 {[%emt 0:00:41]} 9. Be2 {[%emt 0:00:49]} O-O {[%emt 0:00:31]} 10. O-O {[%emt 0:00:07]} Re8 {[%emt 0:00:27]} 11. h3 {[%emt 0:02:04]} a6 {[%emt 0:04:38]} 12. a4 {[%emt 0:00:13]} Rb8 {[%emt 0:01:31]} 13. Qc2 {[%emt 0:02:22]} Nh5 {[%emt 0:06:13] A77: Modern Benoni: Classical: 9...Re8 10 Nd2: 10...a6 and 10...Nbd7.} 14. Bxh5 {[%emt 0:19:27]} gxh5 {[%emt 0:00:28]} 15. a5 {[%emt 0:00:19]} b5 {[%emt 0:07:01]} 16. axb6 {[%emt 0:00:40]} Nxb6 {[%emt 0:00:19]} 17. Nf3 $146 {[%emt 0:20:39]} ({Predecessor:} 17. Re1 f5 18. Qd1 Qg5 19. Kh1 Qg6 20. Ra3 h4 21. Nf3 Bf6 22. exf5 Bxf5 23. Rxa6 {1-0 Li,B (2305)-Niemann,H (2254) USA-ch U16 Manchester 2017 (6)}) 17... h6 {[%emt 0:08:23]} 18. Bf4 {[%emt 0:11:07]} Qf6 {[%emt 0:09:15]} 19. Bg3 {[%emt 0:03:48]} Nc4 {[%emt 0:06:29]} 20. Ra2 {[%emt 0:10:14]} Bd7 {[%emt 0:04:06]} 21. Nd2 {[%emt 0:08:13]} Nxd2 {[%emt 0:07:11]} 22. Qxd2 {[%emt 0:00:05]} h4 {[%emt 0:00:40]} 23. Bf4 {[%emt 0:02:37]} Rb6 {[%emt 0:03:02]} 24. Re1 {[%emt 0:01:33]} Qg6 {[%emt 0:02:21]} 25. Kh2 {[%emt 0:01:52]} Bc8 {[%emt 0:02:14]} 26. f3 {[%emt 0:00:59]} Rb4 {[%emt 0:02:07]} 27. Raa1 {[%emt 0:06:26]} Kh7 {[%emt 0:02:32]} 28. Re2 {[%emt 0:00:40]} Qf6 {[%emt 0:01:33]} 29. Qc1 {[%emt 0:03:05]} Qd8 {[%emt 0:02:40]} 30. Kh1 {[%emt 0:00:54]} f5 {[%emt 0:01:30]} 31. Qc2 {[%emt 0:01:47]} Kh8 {[%emt 0:05:33]} 32. Rae1 {[%emt 0:00:40]} fxe4 {[%emt 0:04:54]} 33. fxe4 {[%emt 0:00:15]} Qf6 {[%emt 0:00:37]} 34. Bh2 {[%emt 0:01:06]} Qg6 {[%emt 0:00:05]} 35. Qc1 {[%emt 0:00:30]} a5 {[%emt 0:04:14]} 36. e5 {[%emt 0:01:51]} dxe5 {[%emt 0:01:53]} 37. Bxe5 {[%emt 0:00:53]} Bxe5 {[%emt 0:00:03]} 38. Rxe5 {[%emt 0:00:06]} Rg8 {[%emt 0:00:18]} 39. R1e2 {[%emt 0:01:09]} Rd4 {[%emt 0:01:07]} 40. R5e3 {[%emt 0:01:55]} (40. Ne4 $6 Bxh3 41. gxh3 Rd3 $11) 40... Bf5 {[%emt 0:02:46]} (40... Qg5 $142) 41. Qe1 {[%emt 0:07:29]} Bd3 {[%emt 0:04:52]} 42. Rf2 {[%emt 0:07:03]} ({Resist} 42. Re6 Qg5 $18) 42... Rf4 {[%emt 0:03:00]} (42... a4 {is a better defense.} 43. Re6 Qg5) 43. Re6 $18 {[%emt 0:03:42]} (43. Rxf4 $2 Qxg2#) 43... Qg5 {[%emt 0:01:16]} 44. Rxh6+ {[%emt 0:01:23]} Qxh6 {[%emt 0:03:01]} 45. Qe5+ {[%emt 0:00:10]} Qf6 {[%emt 0:00:43]} 46. Qxf4 {[%emt 0:01:24]} Qxf4 {[%emt 0:00:05]} 47. Rxf4 {[%emt 0:00:06]} Rb8 {[%emt 0:00:02]} 48. d6 {[%emt 0:01:21]} Rd8 {[%emt 0:01:53]} 49. Na4 {[%emt 0:06:00]} Rxd6 {[%emt 0:00:44]} 50. Nxc5 {[%emt 0:00:06]} ({Don't play} 50. Rxh4+ Kg7 51. Nxc5 Bg6) 50... Bb5 {[%emt 0:00:34]} (50... Bg6 $16 51. Rxh4+ Kg8) 51. Rxh4+ $18 {[%emt 0:00:28]} Kg7 {[%emt 0:00:01]} 52. Nb3 {[%emt 0:02:54]} Rd1+ {[%emt 0:00:55]} 53. Kh2 {[%emt 0:00:04]} Rb1 {[%emt 0:00:13]} 54. Rh5 {[%emt 0:00:45]} (54. Nxa5 Rxb2 55. Rg4+ Kf6) 54... Be8 {[%emt 0:01:09]} 55. Rxa5 {[%emt 0:00:21]} Rxb2 {[%emt 0:00:02]} 56. Nd4 {[%emt 0:00:08]} Bg6 {[%emt 0:02:18]} 57. Re5 {[%emt 0:01:34]} Kf6 $2 {[%emt 0:00:07]} (57... Rb4 {might work better.}) 58. Re2 $18 {[%emt 0:00:31]} Rb1 {[%emt 0:00:54]} 59. g4 {[%emt 0:00:31]} Rb4 {[%emt 0:01:37]} 60. Nf3 {[%emt 0:00:18]} Be4 {[%emt 0:00:29]} 61. Kg3 {[%emt 0:00:15]} Bb7 {[%emt 0:00:25]} 62. Re3 {[%emt 0:00:11]} Bc8 {[%emt 0:00:42]} 63. Nd2 {[%emt 0:00:31]} Bb7 $2 {[%emt 0:00:28]} (63... Ra4 64. Ne4+ Kg6) 64. h4 {[%emt 0:00:10]} Bc8 {[%emt 0:00:17]} 65. Ne4+ {[%emt 0:00:29]} Ke5 $2 {[%emt 0:02:25]} (65... Kg7 {keeps fighting.} 66. Nf2 Kh6) 66. Nf2+ {[%emt 0:00:50]} Kf6 {[%emt 0:00:02]} 67. Rf3+ {[%emt 0:00:40]} Kg6 {[%emt 0:00:07]} (67... Kg7 $142 68. h5 Be6) 68. h5+ $18 {[%emt 0:00:44]} Kg7 {[%emt 0:02:07]} 69. Rf4 {[%emt 0:00:20]} Rb5 {[%emt 0:00:43]} 70. Kh4 {[%emt 0:00:10]} Ra5 {[%emt 0:00:05]} 71. Nh1 {[%emt 0:00:21]} Rb5 {[%emt 0:00:57]} 72. Ng3 {[%emt 0:00:06]} Ra5 {[%emt 0:00:06]} 73. Rf2 {[%emt 0:00:54]} Ra4 {[%emt 0:00:43]} 74. Nf5+ {[%emt 0:00:12]} Kh7 {[%emt 0:00:37]} 75. Kg5 {[%emt 0:00:41]} Ra5 {[%emt 0:00:07]} 76. Rf4 {[%emt 0:00:20]} Be6 {[%emt 0:01:12]} 77. Kh4 {[%emt 0:00:18]} Bc8 {[%emt 0:01:16]} 78. Nd6 {[%emt 0:00:13]} Be6 {[%emt 0:00:02]} 79. Rf6 {[%emt 0:00:24]} Bb3 {[%emt 0:00:12]} 80. Nf5 {[%emt 0:00:22]} Bc2 {[%emt 0:00:46]} 81. Rf7+ {[%emt 0:00:20]} Kg8 {[%emt 0:00:14]} 82. Nh6+ {[%emt 0:00:07]} Kh8 {[%emt 0:00:09]} 83. Rc7 {[%emt 0:00:14]} Bd1 {[%emt 0:00:13]} (83... Bb1 $142 84. Nf7+ Kg8 85. Nh6+ Kh8) 84. Nf7+ $18 {[%emt 0:01:01]} Kg7 {[%emt 0:00:07]} 85. Ng5+ {[%emt 0:00:08]} Kh8 {[%emt 0:00:36]} 86. h6 {[%emt 0:00:18]} Ra8 {[%emt 0:00:23]} 87. Rh7+ {[%emt 0:00:07]} Kg8 {[%emt 0:00:05]} 88. Rg7+ {[%emt 0:00:04]} 1-0

[Event "XII Cracow ICC-A 2024"]
[Site "Krakow"]
[Date "2024.06.25"]
[Round "5.5"]
[White "Nurgaliyev, Sauat"]
[Black "Vetoshko, Volodymyr"]
[Result "1/2-1/2"]
[ECO "B10"]
[WhiteElo "2321"]
[BlackElo "2505"]
[Annotator "TA"]
[PlyCount "102"]
[EventDate "2024.06.20"]
[EventType "swiss"]
[EventCountry "POL"]
[SourceTitle "playchess.com"]
[Source "ChessBase"]
[SourceQuality "1"]
[TimeControl "40/5400+30:1800+30"]

{[%evp 10,102,45,50,40,36,44,45,38,18,29,33,35,16,21,22,16,19,26,10,12,0,2,0,0,-14,-14,-21,-21,-21,-21,-29,-16,-32,-23,-30,-10,-10,-6,-7,0,0,-8,-16,-16,-14,-8,-8,-8,-8,-8,-8,-8,-8,-8,-12,0,-4,0,-9,-8,-43,-35,-79,-74,-73,-61,-64,0,0,0,-14,-14,-12,-12,-14,-16,-18,0,-12,-12,-12,-12,-20,-12,-45,-24,-24,-16,-49,-8,-12,0,0,0]} 1. e4 {[%emt 0:01:34]} c6 {[%emt 0:03:07]} 2. Nf3 {[%emt 0:00:20]} d5 {[%emt 0:00:22]} 3. Nc3 {[%emt 0:00:12]} dxe4 {[%emt 0:00:27]} 4. Nxe4 {[%emt 0:00:07]} Nf6 {[%emt 0:00:06]} 5. Qe2 {[%emt 0:00:15]} Na6 {[%emt 0:01:47]} 6. d4 {[%emt 0:01:25] B11: Caro-Kann: Two Knights Variation.} Nxe4 {[%emt 0:01:25]} 7. Qxe4 {[%emt 0:00:10]} Qd5 {[%emt 0:00:19]} 8. Qxd5 {[%emt 0:00:44]} cxd5 {[%emt 0:00:06]} 9. Ne5 {[%emt 0:00:04]} Nb8 {[%emt 0:01:45]} 10. Bb5+ {[%emt 0:00:02]} Nd7 {[%emt 0:00:24]} 11. Be3 $146 {[%emt 0:01:30]} ({Predecessor:} 11. Be2 a6 12. Nd3 Nb8 13. c3 Bf5 14. Nf4 e6 15. g4 Bc2 16. h4 Bd6 17. Be3 {1-0 Kollars,D (2629)-Pultinevicius,P (2575) Karlsruhe Grenke op 2024 (5)}) 11... f6 {[%emt 0:09:43]} 12. Nxd7 {[%emt 0:00:11]} Bxd7 {[%emt 0:00:04]} 13. Bd3 {[%emt 0:00:52]} Rc8 {[%emt 0:06:21]} 14. O-O-O {[%emt 0:01:36]} Kf7 {[%emt 0:05:01]} 15. f3 {[%emt 0:04:10]} h5 {[%emt 0:01:28]} 16. h4 {[%emt 0:02:30]} g6 {[%emt 0:03:10]} 17. Kb1 {[%emt 0:03:01]} Bf5 {[%emt 0:02:32]} 18. Rhe1 {[%emt 0:03:20]} e6 {[%emt 0:01:42]} 19. Bf4 {[%emt 0:02:35]} b5 {[%emt 0:12:12]} 20. Re3 {[%emt 0:03:31]} b4 {[%emt 0:08:05]} 21. Rde1 {[%emt 0:04:44]} Bxd3 {[%emt 0:06:02]} 22. Rxd3 {[%emt 0:00:12]} Rc4 {[%emt 0:06:38]} 23. b3 {[%emt 0:04:24]} Rc6 {[%emt 0:00:30]} 24. Rc1 {[%emt 0:03:55]} Be7 {[%emt 0:03:50]} 25. c4 {[%emt 0:04:46]} dxc4 {[%emt 0:06:44]} 26. Rxc4 {[%emt 0:05:20]} Rxc4 {[%emt 0:02:53]} 27. bxc4 {[%emt 0:00:02]} Rc8 {[%emt 0:00:11]} 28. c5 {[%emt 0:01:11]} e5 {[%emt 0:00:08]} 29. dxe5 {[%emt 0:01:56]} fxe5 {[%emt 0:00:10]} 30. Bxe5 {[%emt 0:03:22]} Rxc5 {[%emt 0:00:05]} ({Much worse is} 30... Bxh4 31. Bd6 $14) 31. Bg3 {[%emt 0:09:45]} a5 {[%emt 0:04:42]} 32. Rd7 {[%emt 0:01:45]} Ke6 {[%emt 0:01:34]} 33. Ra7 {[%emt 0:00:15]} Rd5 {[%emt 0:07:20]} 34. Ra6+ {[%emt 0:04:17]} Kf7 {[%emt 0:00:20]} 35. Bc7 {[%emt 0:06:33]} Bxh4 {[%emt 0:00:33]} 36. Bxa5 {[%emt 0:01:55]} Be1 {[%emt 0:00:21]} 37. Kc1 {[%emt 0:08:37]} Bd2+ {[%emt 0:01:29]} 38. Kb2 {[%emt 0:00:50]} Bc3+ {[%emt 0:03:22]} (38... h4 $15 39. Ra7+ Ke6) 39. Kb3 $11 {[%emt 0:00:26]} Rd2 {[%emt 0:00:20]} 40. a3 {[%emt 0:01:49]} Rxg2 {[%emt 0:01:16]} 41. axb4 {[%emt 0:31:16]} Be5 {[%emt 0:04:02]} 42. Ra7+ {[%emt 0:00:00]} Ke6 {[%emt 0:01:00]} 43. Bd8 {[%emt 0:00:00]} g5 {[%emt 0:09:45]} 44. Rh7 {[%emt 0:00:00]} g4 {[%emt 0:04:27]} 45. fxg4 {[%emt 0:00:00]} hxg4 {[%emt 0:00:10]} 46. Kc4 {[%emt 0:00:00]} g3 {[%emt 0:01:51]} 47. Rh5 {[%emt 0:00:00]} Bf4 {[%emt 0:06:40]} 48. Bb6 {[%emt 0:00:00]} Rh2 {[%emt 0:00:25]} 49. Ra5 {[%emt 0:00:00]} g2 {[%emt 0:00:28]} 50. Ra1 {[%emt 0:00:00]} Kf5 {[%emt 0:01:22]} 51. Ra2 {[%emt 0:01:31]} Rh6 {[%emt 0:04:46]} 1/2-1/2